bitfinex-derivatives/quotes_BTCF0:USTF0_20241020
["timestamp","ask_amount","ask_price","bid_price","bid_amount"]
[1729422363698,0.03579621,68423.0,68416.0,0.07628492]
[1729422364007,0.03579621,68422.0,68416.0,0.07628492]
[1729422364197,0.03579621,68421.0,68416.0,0.07628492]
[1729422364394,0.0312,68426.0,68416.0,0.07628492]
[1729422364596,0.03579629,68425.0,68416.0,0.07628492]
[1729422364803,0.03579629,68424.0,68416.0,0.07628492]
[1729422365006,0.03579629,68423.0,68416.0,0.07628492]
[1729422365201,0.03579629,68422.0,68416.0,0.07628492]
[1729422365501,0.03579629,68421.0,68416.0,0.07628492]
[1729422365706,0.03579629,68420.0,68416.0,0.07628492]
[1729422365900,0.0312,68426.0,68416.0,0.07628492]
[1729422366094,0.03579625,68425.0,68416.0,0.07628492]
[1729422366402,0.0312,68426.0,68416.0,0.07628492]
[1729422366403,0.03579625,68424.0,68416.0,0.07628492]
[1729422366597,0.03579625,68423.0,68416.0,0.07628492]
[1729422366798,0.03579625,68422.0,68416.0,0.07628492]
[1729422367097,0.03579625,68421.0,68416.0,0.07628492]
[1729422367301,0.0312,68426.0,68416.0,0.07628492]
[1729422367302,0.03579625,68420.0,68416.0,0.07628492]
[1729422367499,0.0312,68426.0,68416.0,0.07628492]
[1729422367500,0.03579623,68419.0,68416.0,0.07628492]
[1729422367698,0.03579623,68418.0,68416.0,0.07628492]
[1729422368007,0.03579623,68417.0,68416.0,0.07628492]
[1729422369904,0.0312,68426.0,68416.0,0.3103014]
[1729422370208,0.0312,68426.0,68424.0,0.08775845]
[1729422370400,0.0312,68426.0,68425.0,0.10676121]
[1729422374806,0.0312,68426.0,68425.0,0.1067641]
[1729422375906,0.392,68426.0,68425.0,0.1067641]
[1729422376304,0.0312,68426.0,68425.0,0.1067641]
[1729422376508,0.392,68426.0,68425.0,0.1067641]
[1729422376710,0.0312,68426.0,68425.0,0.1067641]
[1729422376900,0.392,68426.0,68415.0,0.0306]
[1729422377106,0.44146492,68425.0,68415.0,0.0306]
[1729422377310,0.03579647,68424.0,68416.0,0.07628492]
[1729422377509,0.03579647,68423.0,68416.0,0.07628492]
[1729422377713,0.03579647,68422.0,68416.0,0.07628492]
[1729422378006,0.03579647,68421.0,68416.0,0.07628492]
[1729422378212,0.03579647,68420.0,68416.0,0.07628492]
[1729422378511,0.03579647,68419.0,68416.0,0.07628492]
[1729422378712,0.03579647,68418.0,68416.0,0.07628492]
[1729422378916,0.03579647,68417.0,68416.0,0.07628492]
[1729422380908,0.0312,68426.0,68416.0,0.07628492]
[1729422381109,0.03579617,68425.0,68416.0,0.07628492]
[1729422381308,0.03579617,68424.0,68416.0,0.07628492]
[1729422381609,0.03579617,68423.0,68416.0,0.07628492]
[1729422381814,0.03579617,68422.0,68416.0,0.07628492]
[1729422382111,0.03579617,68421.0,68416.0,0.07628492]
[1729422382303,0.03579617,68420.0,68416.0,0.07628492]
[1729422382501,0.0312,68426.0,68416.0,0.07628492]
[1729422382705,0.03579614,68425.0,68416.0,0.07628492]
[1729422382909,0.03579614,68424.0,68416.0,0.07628492]
[1729422383107,0.03579614,68423.0,68416.0,0.07628492]
[1729422383308,0.03579614,68422.0,68416.0,0.07628492]
[1729422383504,0.03579614,68421.0,68416.0,0.07628492]
[1729422383705,0.03579614,68420.0,68416.0,0.07628492]
[1729422383913,0.0312,68426.0,68416.0,0.07628492]
[1729422384216,0.03579591,68425.0,68416.0,0.07628492]
[1729422384513,0.08066363,68424.0,68416.0,0.07628492]
[1729422384704,0.08066363,68423.0,68416.0,0.07628492]
[1729422384904,0.0312,68426.0,68417.0,0.23393076]
[1729422385209,0.0312,68426.0,68424.0,0.08776327]
[1729422385511,0.0312,68426.0,68425.0,0.1067221]
[1729422386512,0.392,68426.0,68425.0,0.1067221]
[1729422387709,0.0312,68426.0,68425.0,0.1067221]
[1729422391922,0.0312,68426.0,68423.0,0.07313783]
[1729422395520,0.392,68426.0,68423.0,0.07313783]
[1729422397917,0.0312,68426.0,68423.0,0.07313783]
[1729422398216,0.392,68426.0,68423.0,0.07313783]
[1729422399211,0.392,68426.0,68422.0,0.07313783]
[1729422399409,0.0312,68426.0,68422.0,0.07313783]
[1729422399619,0.392,68426.0,68422.0,0.07313783]
[1729422399807,0.04486812,68425.0,68415.0,0.0306]
[1729422400007,0.08066433,68425.0,68415.0,0.0306]
[1729422400222,0.08066433,68424.0,68417.0,0.07575089]
[1729422400422,0.08066433,68424.0,68416.0,0.00053403]
[1729422400423,0.08066433,68423.0,68416.0,0.00053403]
[1729422400627,0.03579621,68422.0,68415.0,0.0306]
[1729422400826,0.03579621,68421.0,68416.0,0.077353]
[1729422401123,0.03579621,68420.0,68416.0,0.077353]
[1729422401323,0.03579621,68419.0,68416.0,0.077353]
[1729422401621,0.03579621,68418.0,68416.0,0.077353]
[1729422401812,0.03579621,68417.0,68416.0,0.077353]
[1729422405011,0.08066432,68424.0,68416.0,0.077353]
[1729422406924,0.40020529,68425.0,68423.0,0.08776327]
[1729422407221,0.40020529,68425.0,68424.0,0.10677]
[1729422411026,0.40020529,68425.0,68424.0,0.19453327]
[1729422411225,0.40020529,68425.0,68424.0,0.19453878]
[1729422411826,0.40020529,68425.0,68424.0,0.10677551]
[1729422412022,0.40020529,68425.0,68424.0,0.10677366]
[1729422412224,0.40020529,68425.0,68424.0,0.19453693]
[1729422413722,0.40020529,68425.0,68424.0,0.10677366]
[1729422414027,0.40020529,68425.0,68424.0,0.19453693]
[1729422414528,0.40020529,68425.0,68424.0,0.10677366]
[1729422414931,0.40020529,68425.0,68415.0,0.0306]
[1729422414932,0.4808698,68425.0,68415.0,0.0306]
[1729422415232,0.08066451,68424.0,68416.0,0.07681896]
[1729422417324,0.08066431,68423.0,68416.0,0.07681896]
[1729422417523,0.08066431,68422.0,68416.0,0.07681896]
[1729422417726,0.0357962,68421.0,68416.0,0.07681896]
[1729422417915,0.0357962,68420.0,68416.0,0.07681896]
[1729422418123,0.0357962,68419.0,68416.0,0.07681896]
[1729422418321,0.0357962,68418.0,68416.0,0.07681896]
[1729422418523,0.0357962,68417.0,68416.0,0.07681896]
[1729422420922,0.03579605,68417.0,68416.0,0.07681896]
[1729422421924,0.40020529,68425.0,68416.0,0.31087427]
[1729422422133,0.40020529,68425.0,68424.0,0.087768]
[1729422422432,0.40020529,68425.0,68424.0,0.19454692]
[1729422423438,0.40020529,68425.0,68424.0,0.10677892]
[1729422424440,0.40020529,68425.0,68424.0,0.19454692]
[1729422424825,0.40020529,68425.0,68424.0,0.10677892]
[1729422425430,0.40020529,68425.0,68424.0,0.19454692]
[1729422430047,0.40020529,68425.0,68424.0,0.07314007]
[1729422432149,0.40020529,68425.0,68423.0,0.07314007]
[1729422436951,0.08066491,68424.0,68415.0,0.0306]
[1729422437261,0.08066491,68423.0,68416.0,0.07681896]
[1729422437460,0.08066491,68422.0,68416.0,0.07681896]
[1729422437756,0.08066491,68421.0,68416.0,0.07681896]
[1729422438059,0.08066491,68420.0,68416.0,0.07681896]
[1729422438263,0.08066491,68419.0,68416.0,0.07681896]
[1729422438559,0.03579647,68418.0,68416.0,0.07681896]
[1729422438760,0.03579647,68417.0,68416.0,0.07681896]
[1729422445055,0.0261317,68421.0,68416.0,0.56106779]
[1729422445250,0.40020529,68425.0,68417.0,0.23407911]
[1729422445451,0.40020529,68425.0,68424.0,0.08776596]
[1729422445656,0.42713221,68425.0,68424.0,0.19455504]
[1729422447251,0.42713221,68425.0,68424.0,0.10678908]
[1729422448463,0.42713221,68425.0,68424.0,0.19455505]
[1729422450464,0.42713221,68425.0,68424.0,0.19456607]
[1729422452065,0.50779602,68425.0,68416.0,0.3608]
[1729422452270,0.08066381,68424.0,68416.0,0.3608]
[1729422452572,0.08066381,68423.0,68417.0,0.07628492]
[1729422452761,0.08066381,68422.0,68417.0,0.07628492]
[1729422452957,0.08066381,68421.0,68417.0,0.07628492]
[1729422453164,0.08066381,68420.0,68417.0,0.07628492]
[1729422453364,0.08066381,68419.0,68417.0,0.07628492]
[1729422453563,0.08066381,68418.0,68417.0,0.07628492]
[1729422455362,0.08066379,68418.0,68417.0,0.07628492]
[1729422455562,0.08066379,68424.0,68417.0,0.07628492]
[1729422455771,0.08066379,68423.0,68417.0,0.07628492]
[1729422455968,0.08066379,68422.0,68417.0,0.07628492]
[1729422456167,0.08066379,68421.0,68417.0,0.07628492]
[1729422456478,0.08066379,68420.0,68417.0,0.07628492]
[1729422456670,0.08066379,68419.0,68417.0,0.07628492]
[1729422456977,0.08066379,68418.0,68417.0,0.07628492]
[1729422457478,0.03579597,68418.0,68417.0,0.07628492]
[1729422457774,0.13309149,68424.0,68417.0,0.07628492]
[1729422460071,0.42713221,68425.0,68418.0,0.23408965]
[1729422460271,0.42713221,68425.0,68424.0,0.08776524]
[1729422460476,0.42713221,68425.0,68424.0,0.19455983]
[1729422463677,0.42713221,68425.0,68424.0,0.10679459]
[1729422464074,0.42713221,68425.0,68424.0,0.19455983]
[1729422465276,0.42713221,68425.0,68424.0,0.08776524]
[1729422465477,0.42713221,68425.0,68424.0,0.19456585]
[1729422466974,0.42713221,68425.0,68424.0,0.08776524]
[1729422467181,0.42713221,68425.0,68415.0,0.0306]
[1729422467182,0.50779602,68425.0,68415.0,0.0306]
[1729422467383,0.08066381,68424.0,68415.0,0.0306]
[1729422467584,0.08066381,68423.0,68417.0,0.07628492]
[1729422467773,0.08066381,68422.0,68416.0,0.36133404]
[1729422467973,0.08066381,68421.0,68416.0,0.3608]
[1729422468180,0.08066381,68420.0,68417.0,0.07788706]
[1729422468380,0.08066381,68419.0,68417.0,0.07788706]
[1729422468682,0.08066381,68418.0,68416.0,0.36186812]
[1729422468881,0.08066381,68417.0,68415.0,0.0306]
[1729422469083,0.05242771,68424.0,68417.0,0.08002334]
[1729422469281,0.08066381,68423.0,68417.0,0.08002334]
[1729422469483,0.08066381,68422.0,68416.0,0.3608]
[1729422469677,0.42713221,68425.0,68416.0,0.3608]
[1729422469678,0.08066381,68421.0,68416.0,0.3608]
[1729422469881,0.08066381,68420.0,68417.0,0.077353]
[1729422470080,0.08066381,68419.0,68417.0,0.077353]
[1729422470281,0.03579597,68418.0,68417.0,0.077353]
[1729422470483,0.42713221,68425.0,68417.0,0.077353]
[1729422470484,0.08066379,68424.0,68417.0,0.077353]
[1729422470787,0.08066379,68423.0,68417.0,0.077353]
[1729422471087,0.08066379,68422.0,68417.0,0.077353]
[1729422471278,0.08066379,68421.0,68417.0,0.077353]
[1729422471474,0.08066379,68420.0,68417.0,0.077353]
[1729422471678,0.08066379,68419.0,68417.0,0.077353]
[1729422471877,0.03579597,68418.0,68417.0,0.077353]
[1729422473587,0.0806638,68424.0,68417.0,0.077353]
[1729422473889,0.0806638,68423.0,68417.0,0.077353]
[1729422474081,0.0806638,68422.0,68417.0,0.077353]
[1729422474281,0.0806638,68421.0,68417.0,0.077353]
[1729422474484,0.0806638,68420.0,68417.0,0.077353]
[1729422474685,0.0806638,68419.0,68417.0,0.077353]
[1729422474985,0.0806638,68418.0,68417.0,0.077353]
[1729422475188,0.42713221,68425.0,68417.0,0.31145056]
[1729422475392,0.42713221,68425.0,68424.0,0.08776822]
[1729422475592,0.42713221,68425.0,68424.0,0.19456626]
[1729422477483,0.42713221,68425.0,68424.0,0.10679804]
[1729422477990,0.42713221,68425.0,68424.0,0.19456626]
[1729422481488,0.42713221,68425.0,68424.0,0.10679804]
[1729422481686,0.42713221,68425.0,68424.0,0.19456626]
[1729422481883,0.42713221,68425.0,68424.0,0.10679804]
[1729422482087,0.42713221,68425.0,68423.0,0.07314048]
[1729422485702,0.42713221,68425.0,68424.0,0.07314048]
[1729422487890,0.42713221,68425.0,68423.0,0.07314048]
[1729422489099,0.13309237,68424.0,68416.0,0.3608]
[1729422489501,0.13309237,68424.0,68417.0,0.07628492]
[1729422489995,0.08066433,68423.0,68417.0,0.07628492]
[1729422490196,0.08066433,68422.0,68417.0,0.07628492]
[1729422490396,0.08066433,68421.0,68417.0,0.07628492]
[1729422490603,0.08066433,68420.0,68417.0,0.07628492]
[1729422490801,0.08066433,68419.0,68417.0,0.07628492]
[1729422491102,0.08066433,68418.0,68417.0,0.07628492]
[1729422491503,0.08066433,68424.0,68417.0,0.07628492]
[1729422491701,0.08066433,68423.0,68417.0,0.07628492]
[1729422491898,0.08066433,68422.0,68417.0,0.07628492]
[1729422492096,0.08066433,68421.0,68417.0,0.07628492]
[1729422492292,0.08066433,68420.0,68417.0,0.07628492]
[1729422492497,0.08066433,68419.0,68417.0,0.07628492]
[1729422492697,0.08066433,68418.0,68417.0,0.07628492]
[1729422492905,0.08066433,68424.0,68417.0,0.07628492]
[1729422493101,0.42713221,68425.0,68417.0,0.07628492]
[1729422493102,0.08066433,68423.0,68417.0,0.07628492]
[1729422493402,0.08066433,68422.0,68417.0,0.07628492]
[1729422493606,0.08066433,68421.0,68417.0,0.07628492]
[1729422493808,0.08066433,68420.0,68417.0,0.07628492]
[1729422494104,0.08066433,68419.0,68417.0,0.07628492]
[1729422494404,0.08066433,68418.0,68416.0,0.3608]
[1729422494606,0.08066433,68417.0,68416.0,0.3608]
[1729422494996,0.08066444,68424.0,68416.0,0.3608]
[1729422495201,0.42713221,68425.0,68416.0,0.3608]
[1729422495202,0.08066444,68423.0,68416.0,0.3608]
[1729422495508,0.08066444,68422.0,68416.0,0.3608]
[1729422495710,0.08066444,68421.0,68416.0,0.3608]
[1729422495899,0.08066444,68420.0,68415.0,0.0306]
[1729422496100,0.08066444,68419.0,68415.0,0.3914]
[1729422496310,0.08066444,68418.0,68416.0,0.07895518]
[1729422496509,0.78793221,68425.0,68416.0,0.07895518]
[1729422496510,0.08066444,68417.0,68416.0,0.07895518]
[1729422497205,0.78793221,68425.0,68416.0,0.31292362]
[1729422497406,0.78793221,68425.0,68423.0,0.0877654]
[1729422497613,0.78793221,68425.0,68424.0,0.10673929]
[1729422500008,0.78793221,68425.0,68424.0,0.19450469]
[1729422501107,0.78793221,68425.0,68424.0,0.10673929]
[1729422504118,0.86859667,68425.0,68415.0,0.3914]
[1729422504309,0.08066446,68424.0,68415.0,0.3914]
[1729422508717,0.08066446,68423.0,68415.0,0.3914]
[1729422508917,0.08066446,68422.0,68415.0,0.3914]
[1729422509215,0.08066446,68421.0,68415.0,0.3914]
[1729422509416,0.08066446,68420.0,68415.0,0.3914]
[1729422509617,0.03579627,68419.0,68415.0,0.3914]
[1729422509812,0.03579627,68418.0,68415.0,0.3914]
[1729422510012,0.03579627,68417.0,68415.0,0.3914]
[1729422510213,0.03579627,68416.0,68415.0,0.3914]
[1729422512119,0.78793221,68425.0,68415.0,0.62538577]
[1729422512313,0.78793221,68425.0,68423.0,0.08776617]
[1729422512510,0.78793221,68425.0,68424.0,0.1067472]
[1729422516421,0.42713221,68425.0,68424.0,0.1067472]
[1729422517520,0.42713221,68425.0,68424.0,0.19451337]
[1729422518731,0.42713221,68425.0,68424.0,0.19447146]
[1729422520217,0.42713221,68425.0,68424.0,0.10670529]
[1729422521322,0.02692692,68425.0,68424.0,0.10670529]
[1729422521626,0.48004,68426.0,68424.0,0.10670529]
[1729422521824,0.48004,68426.0,68425.0,0.19447103]
[1729422524025,0.50593997,68426.0,68425.0,0.19447103]
[1729422527122,0.63903161,68426.0,68417.0,0.10238084]
[1729422527324,0.63903161,68426.0,68416.0,0.3608]
[1729422527325,0.13309164,68425.0,68416.0,0.3608]
[1729422527530,0.08066388,68424.0,68416.0,0.3608]
[1729422527720,0.08066388,68423.0,68416.0,0.3608]
[1729422528033,0.08066388,68422.0,68416.0,0.3608]
[1729422528238,0.08066388,68421.0,68416.0,0.3608]
[1729422528428,0.08066388,68420.0,68416.0,0.3608]
[1729422528624,0.08066388,68419.0,68416.0,0.3608]
[1729422528824,0.08066388,68418.0,68416.0,0.3608]
[1729422529035,0.08066388,68417.0,68416.0,0.3608]
[1729422529428,0.13309164,68425.0,68416.0,0.3608]
[1729422529627,0.08066388,68424.0,68416.0,0.3608]
[1729422529830,0.08066388,68423.0,68416.0,0.3608]
[1729422530033,0.08066388,68422.0,68416.0,0.3608]
[1729422530230,0.08066388,68421.0,68416.0,0.3608]
[1729422530534,0.08066388,68420.0,68416.0,0.3608]
[1729422530725,0.08066388,68419.0,68416.0,0.3608]
[1729422530925,0.05242776,68425.0,68416.0,0.3608]
[1729422530926,0.08066388,68418.0,68416.0,0.3608]
[1729422531233,0.05242776,68425.0,68416.0,0.3608]
[1729422531234,0.08066388,68417.0,68416.0,0.3608]
[1729422531730,0.13309164,68425.0,68416.0,0.3608]
[1729422531933,0.08066388,68424.0,68416.0,0.3608]
[1729422532136,0.05242776,68425.0,68416.0,0.3608]
[1729422532137,0.08066388,68423.0,68416.0,0.3608]
[1729422532328,0.08066388,68422.0,68416.0,0.3608]
[1729422532530,0.08066388,68421.0,68416.0,0.3608]
[1729422532830,0.08066388,68420.0,68416.0,0.3608]
[1729422533135,0.08066388,68419.0,68416.0,0.3608]
[1729422533336,0.05242776,68425.0,68416.0,0.3608]
[1729422533337,0.08066388,68418.0,68416.0,0.3608]
[1729422533526,0.08066388,68417.0,68416.0,0.3608]
[1729422534334,0.13309164,68425.0,68416.0,0.3608]
[1729422534640,0.08066388,68424.0,68416.0,0.3608]
[1729422534831,0.08066388,68423.0,68416.0,0.3608]
[1729422535028,0.08066388,68422.0,68416.0,0.3608]
[1729422535228,0.08066388,68421.0,68416.0,0.3608]
[1729422535528,0.05242776,68425.0,68416.0,0.3608]
[1729422535529,0.08066388,68420.0,68416.0,0.3608]
[1729422535833,0.08066388,68419.0,68416.0,0.3608]
[1729422536044,0.08066388,68418.0,68416.0,0.3608]
[1729422536338,0.08066388,68417.0,68416.0,0.3608]
[1729422537533,0.03579601,68417.0,68416.0,0.3608]
[1729422537934,0.08066388,68423.0,68416.0,0.3608]
[1729422538130,0.08066388,68422.0,68416.0,0.3608]
[1729422538438,0.08066388,68421.0,68416.0,0.3608]
[1729422538639,0.08066388,68420.0,68416.0,0.3608]
[1729422538839,0.08066388,68419.0,68416.0,0.3608]
[1729422539024,0.08066388,68418.0,68416.0,0.3608]
[1729422539230,0.08066388,68417.0,68416.0,0.3608]
[1729422539736,0.13309164,68425.0,68416.0,0.3608]
[1729422539935,0.08066388,68424.0,68416.0,0.3608]
[1729422540136,0.08066388,68423.0,68416.0,0.3608]
[1729422540431,0.08066388,68422.0,68416.0,0.3608]
[1729422540635,0.08066388,68421.0,68416.0,0.3608]
[1729422540835,0.08066388,68420.0,68416.0,0.3608]
[1729422541141,0.08066388,68419.0,68416.0,0.3608]
[1729422541438,0.08066388,68418.0,68416.0,0.3608]
[1729422541639,0.08066388,68417.0,68416.0,0.3608]
[1729422541826,0.04486787,68417.0,68416.0,0.3608]
[1729422542138,0.08066446,68417.0,68416.0,0.3608]
[1729422542343,0.50593997,68426.0,68416.0,0.46758708]
[1729422542531,0.50593997,68426.0,68423.0,0.05851149]
[1729422543926,0.14513997,68426.0,68423.0,0.05851149]
[1729422544130,0.3608,68425.0,68423.0,0.05851149]
[1729422548537,0.14513997,68426.0,68423.0,0.05851149]
[1729422548831,0.3608,68425.0,68423.0,0.05851149]
[1729422549037,0.14513997,68426.0,68423.0,0.05851149]
[1729422549238,0.3608,68425.0,68423.0,0.05851149]
[1729422550244,0.3608,68425.0,68422.0,0.05851149]
[1729422551338,0.3608,68425.0,68423.0,0.05851149]
[1729422555943,0.14513997,68426.0,68423.0,0.05851149]
[1729422556241,0.3608,68425.0,68423.0,0.05851149]
[1729422556947,0.14513997,68426.0,68423.0,0.05851149]
[1729422557141,0.3608,68425.0,68423.0,0.05851149]
[1729422557446,0.08066447,68424.0,68415.0,0.3914]
[1729422557645,0.08066447,68423.0,68415.0,0.0306]
[1729422557845,0.08066447,68422.0,68415.0,0.3914]
[1729422558046,0.08066447,68421.0,68415.0,0.3914]
[1729422558247,0.08066447,68420.0,68415.0,0.3914]
[1729422558548,0.08066447,68419.0,68415.0,0.3914]
[1729422558745,0.08066447,68418.0,68415.0,0.0306]
[1729422559051,0.08066447,68417.0,68415.0,0.3914]
[1729422559241,0.03579627,68416.0,68415.0,0.3914]
[1729422560137,0.08066447,68416.0,68415.0,0.3914]
[1729422560735,0.08066447,68416.0,68415.0,0.0306]
[1729422561052,0.08066447,68416.0,68415.0,0.3914]
[1729422561244,0.08066447,68416.0,68415.0,0.0306]
[1729422561945,0.03579627,68416.0,68415.0,0.3914]
[1729422563652,0.03579627,68416.0,68415.0,0.0306]
[1729422563949,0.03579627,68416.0,68415.0,0.3914]
[1729422564351,0.3608,68425.0,68415.0,0.62584549]
[1729422564544,0.3608,68425.0,68423.0,0.08776673]
[1729422564740,0.14513997,68426.0,68424.0,0.10695693]
[1729422564941,0.14513997,68426.0,68425.0,0.10695693]
[1729422565143,0.50593997,68426.0,68425.0,0.10695693]
[1729422565650,0.14513997,68426.0,68425.0,0.10695693]
[1729422565950,0.50593997,68426.0,68425.0,0.10695693]
[1729422566142,0.14513997,68426.0,68425.0,0.10695693]
[1729422566342,0.50593997,68426.0,68425.0,0.10695693]
[1729422566538,0.14513997,68426.0,68425.0,0.10695693]
[1729422566844,0.50593997,68426.0,68425.0,0.10695693]
[1729422568248,0.41789997,68426.0,68425.0,0.10695693]
[1729422569448,0.05709997,68426.0,68425.0,0.10695693]
[1729422570242,0.41789997,68426.0,68425.0,0.10695693]
[1729422571554,0.05709997,68426.0,68425.0,0.10695693]
[1729422572251,0.41789997,68426.0,68423.0,0.0585137]
[1729422573247,0.05709997,68426.0,68423.0,0.0585137]
[1729422573455,0.3608,68425.0,68423.0,0.0585137]
[1729422573657,0.05709997,68426.0,68423.0,0.0585137]
[1729422573852,0.3608,68425.0,68423.0,0.0585137]
[1729422574245,0.05709997,68426.0,68423.0,0.0585137]
[1729422574954,0.3608,68425.0,68423.0,0.0585137]
[1729422575456,0.05709997,68426.0,68423.0,0.0585137]
[1729422575852,0.3608,68425.0,68423.0,0.0585137]
[1729422576556,0.05709997,68426.0,68423.0,0.0585137]
[1729422576761,0.3608,68425.0,68423.0,0.0585137]
[1729422577462,0.05709997,68426.0,68423.0,0.0585137]
[1729422577659,0.3608,68425.0,68423.0,0.0585137]
[1729422577853,0.05709997,68426.0,68423.0,0.0585137]
[1729422578162,0.3608,68425.0,68423.0,0.0585137]
[1729422578353,0.3608,68425.0,68422.0,0.0585137]
[1729422579054,1.8608,68425.0,68422.0,0.0585137]
[1729422579255,0.1330944,68424.0,68415.0,0.3914]
[1729422579447,0.08066556,68423.0,68415.0,0.3914]
[1729422579756,0.08066556,68422.0,68415.0,0.3914]
[1729422579954,0.08066556,68421.0,68415.0,0.3914]
[1729422580157,0.08066556,68420.0,68415.0,0.3914]
[1729422580460,0.08066556,68419.0,68415.0,0.0306]
[1729422580659,0.08066556,68418.0,68415.0,0.0306]
[1729422580854,0.08066556,68417.0,68415.0,0.0306]
[1729422581051,0.08066556,68416.0,68415.0,0.0306]
[1729422587269,0.3608,68424.0,68415.0,0.45432275]
[1729422587462,0.05709997,68426.0,68423.0,0.11701691]
[1729422587661,0.05709997,68426.0,68424.0,0.38262635]
[1729422587966,0.05709997,68426.0,68423.0,0.11701691]
[1729422587967,0.05709997,68426.0,68425.0,0.38262635]
[1729422588166,0.41789997,68426.0,68425.0,0.38262635]
[1729422588561,0.05709997,68426.0,68425.0,0.38262635]
[1729422588962,0.41789997,68426.0,68425.0,0.38262635]
[1729422589670,0.05709997,68426.0,68425.0,0.38262635]
[1729422590071,0.41789997,68426.0,68425.0,0.38262635]
[1729422590661,0.05709997,68426.0,68425.0,0.38262635]
[1729422591675,0.41789997,68426.0,68425.0,0.38262635]
[1729422594263,0.36669927,68426.0,68425.0,0.38262635]
[1729422594460,0.36669927,68426.0,68416.0,0.02624322]
[1729422594461,0.49979479,68426.0,68416.0,0.02624322]
[1729422594671,0.13309552,68425.0,68415.0,0.0306]
[1729422594874,0.08066624,68424.0,68415.0,0.0306]
[1729422595074,0.05242928,68425.0,68415.0,0.0306]
[1729422595075,0.08066624,68423.0,68415.0,0.0306]
[1729422595264,0.08066624,68422.0,68415.0,0.0306]
[1729422595469,0.08066624,68421.0,68415.0,0.0306]
[1729422595669,0.08066624,68420.0,68415.0,0.0306]
[1729422595873,0.08066624,68419.0,68415.0,0.05631071]
[1729422596071,0.08066624,68418.0,68415.0,0.05631071]
[1729422596278,0.08066624,68417.0,68415.0,0.05631071]
[1729422596467,0.08066624,68416.0,68415.0,0.05631071]
[1729422600768,0.05242765,68425.0,68415.0,1.17641635]
[1729422600969,0.4488,68435.0,68424.0,0.3608]
[1729422601175,0.3608,68435.0,68425.0,0.092]
[1729422601571,0.3608,68435.0,68426.0,0.06613972]
[1729422602481,0.3608,68435.0,68434.0,0.0731355]
[1729422602782,0.3608,68435.0,68433.0,0.0731355]
[1729422603381,0.3608,68435.0,68432.0,0.0731355]
[1729422603571,0.38714534,68435.0,68432.0,0.0731355]
[1729422605781,0.38714534,68435.0,68433.0,0.0731355]
[1729422606078,0.02634534,68435.0,68433.0,0.0731355]
[1729422606283,0.3608,68436.0,68433.0,0.0731355]
[1729422606479,0.3608,68436.0,68432.0,0.0731355]
[1729422606874,1.5,68435.0,68432.0,0.0731355]
[1729422608979,1.5,68435.0,68433.0,0.17976468]
[1729422609177,1.5,68435.0,68433.0,0.0731355]
[1729422609482,0.08064943,68434.0,68426.0,0.06613972]
[1729422609672,0.08064943,68434.0,68425.0,0.48138822]
[1729422609868,0.08064943,68434.0,68425.0,0.47946822]
[1729422610077,0.08064943,68434.0,68427.0,0.06613972]
[1729422610385,0.08064943,68434.0,68425.0,0.48138822]
[1729422610587,0.08064943,68434.0,68425.0,0.47946822]
[1729422610884,0.08064943,68434.0,68427.0,0.06613972]
[1729422611084,0.08064943,68434.0,68426.0,0.00053389]
[1729422611284,0.08064943,68434.0,68425.0,0.48146822]
[1729422611584,0.08064943,68434.0,68431.0,0.3608]
[1729422615082,0.08064894,68433.0,68431.0,0.3608]
[1729422615278,0.08064791,68432.0,68431.0,0.3608]
[1729422615588,0.08064791,68432.0,68431.0,0.36133386]
[1729422615791,0.08064791,68432.0,68431.0,0.79973386]
[1729422616180,0.00219195,68447.0,68431.0,0.79973386]
[1729422616489,0.00219195,68447.0,68440.0,0.3608]
[1729422616686,0.00219195,68447.0,68441.0,0.0615]
[1729422621484,0.00219195,68447.0,68442.0,0.05119402]
[1729422624298,0.00219195,68447.0,68444.0,0.08776261]
[1729422629200,0.00219195,68447.0,68441.0,0.0615]
[1729422629201,0.08063731,68446.0,68441.0,0.0615]
[1729422629503,0.08063731,68445.0,68442.0,0.05119402]
[1729422629700,0.03578422,68444.0,68442.0,0.05119402]
[1729422629894,0.03578422,68443.0,68442.0,0.05119402]
[1729422630396,0.00219195,68447.0,68442.0,0.48951402]
[1729422630594,0.00219195,68447.0,68446.0,0.3608]
[1729422631196,0.04704215,68447.0,68446.0,0.3608]
[1729422631506,0.00219195,68447.0,68446.0,0.3608]
[1729422632302,0.04704173,68447.0,68446.0,0.3608]
[1729422633198,0.00219195,68447.0,68446.0,0.3608]
[1729422635496,0.00219195,68447.0,68441.0,0.0615]
[1729422636006,0.00219195,68447.0,68446.0,0.3608]
[1729422637900,0.00219195,68447.0,68446.0,0.40932579]
[1729422648416,0.03797326,68447.0,68446.0,0.29234711]
[1729422649623,0.0828227,68447.0,68446.0,0.29234711]
[1729422650815,0.0828227,68447.0,68446.0,0.20667079]
[1729422655311,0.00219195,68447.0,68446.0,0.20667079]
[1729422655714,0.00219195,68447.0,68445.0,0.07287641]
[1729422656112,0.00219195,68447.0,68446.0,0.00053363]
[1729422658116,0.00219195,68447.0,68446.0,0.07341004]
[1729422658424,0.00219195,68447.0,68446.0,0.18151294]
[1729422662721,0.00219195,68447.0,68446.0,0.10863653]
[1729422663320,0.00219195,68447.0,68446.0,0.00053363]
[1729422663515,0.03797196,68447.0,68446.0,0.00053363]
[1729422663723,0.00219195,68447.0,68446.0,0.00053363]
[1729422663916,0.08281977,68447.0,68446.0,0.00053363]
[1729422665029,0.08281977,68447.0,68446.0,0.00038133]
[1729422670321,0.00219195,68447.0,68446.0,0.10828249]
[1729422674427,0.00219195,68447.0,68446.0,0.10826377]
[1729422678329,0.08281939,68447.0,68446.0,0.00038133]
[1729422680831,0.08281939,68447.0,68443.0,0.3608]
[1729422681032,0.14472744,68446.0,68443.0,0.3608]
[1729422681234,0.08062744,68445.0,68443.0,0.3608]
[1729422681436,0.08063046,68444.0,68443.0,0.3608]
[1729422684431,0.0963,68446.0,68443.0,0.3608]
[1729422684432,0.08063057,68445.0,68443.0,0.3608]
[1729422684632,0.08063057,68444.0,68443.0,0.3608]
[1729422685536,0.0963,68446.0,68443.0,0.54181385]
[1729422685746,0.0963,68446.0,68443.0,0.43387955]
[1729422688346,0.1225332,68446.0,68443.0,0.43387955]
[1729422689145,0.1225332,68446.0,68443.0,0.3608]
[1729422691446,0.1225332,68446.0,68442.0,0.07307955]
[1729422693248,0.1225332,68446.0,68441.0,0.07307955]
[1729422693451,0.1225332,68446.0,68445.0,0.04383313]
[1729422693641,0.1225332,68446.0,68444.0,0.04383313]
[1729422695349,0.1225332,68446.0,68443.0,0.04383313]
[1729422700455,0.08063427,68445.0,68440.0,0.36272]
[1729422700754,0.08063427,68445.0,68440.0,0.3608]